bitfinex/quotes_SOLUSD_20251013
["timestamp","ask_amount","ask_price","bid_price","bid_amount"]
[1760366607514,5.90813652,194.71,194.65,26.70813652]
[1760366607720,0.72,194.7,194.65,26.70813652]
[1760366607898,0.72,194.7,194.66,5.90813652]
[1760366608296,0.72,194.69,194.66,5.90813652]
[1760366608491,2.68109789,194.73,194.67,5.90813652]
[1760366608693,2.68109789,194.73,194.65,20.8]
[1760366608694,2.68109789,194.73,194.69,5.90813652]
[1760366608917,2.68109789,194.73,194.71,5.90813652]
[1760366609604,23.8094043,194.82,194.68,20.8]
[1760366609605,5.13339288,194.81,194.72,11.04371581]
[1760366609915,3.40048965,194.78,194.74,5.90813652]
[1760366610115,0.72,194.77,194.73,5.90813652]
[1760366610293,0.72,194.76,194.73,5.90813652]
[1760366610620,6.62813652,194.75,194.7,5.13610683]
[1760366610913,2.6806804,194.76,194.72,5.90813652]
[1760366611096,0.72,194.74,194.69,5.13633247]
[1760366611302,2.6806804,194.76,194.71,5.90813652]
[1760366611511,0.72,194.74,194.71,5.90813652]
[1760366611713,0.72,194.73,194.68,38.77817467]
[1760366611909,9.30881692,194.76,194.7,5.90813652]
[1760366612105,3.4006804,194.76,194.72,5.90813652]
[1760366612307,2.6806804,194.76,194.73,5.90813652]
[1760366613112,2.6806804,194.76,194.68,64.09782226]
[1760366613113,6.62813652,194.75,194.68,17.97817467]
[1760366613326,0.72,194.75,194.69,26.70813652]
[1760366613514,2.6806804,194.76,194.71,5.90813652]
[1760366613720,3.4006804,194.76,194.73,5.13531556]
[1760366613920,0.72,194.75,194.73,5.13531556]
[1760366614407,2.6806804,194.76,194.69,26.70813652]
[1760366614408,0.72,194.74,194.69,26.70813652]
[1760366614608,0.72,194.73,194.68,5.90813652]
[1760366614810,5.90813652,194.75,194.69,5.90813652]
[1760366615209,6.62813652,194.75,194.69,5.90813652]
[1760366615523,6.62813652,194.75,194.67,17.97914419]
[1760366615524,6.62813652,194.74,194.68,5.90813652]
[1760366615702,5.90813652,194.75,194.69,11.04450716]
[1760366615899,0.72,194.74,194.69,11.04450716]
[1760366616099,0.72,194.73,194.67,5.13689834]
[1760366616626,5.90813652,194.69,194.64,5.13766042]
[1760366616816,0.72,194.68,194.63,5.90813652]
[1760366617023,0.72,194.67,194.63,5.90813652]
[1760366617331,0.72,194.73,194.63,5.13794902]
[1760366617534,2.6806804,194.76,194.63,5.13794902]
[1760366617535,0.72,194.75,194.7,5.90813652]
[1760366617828,0.72,194.75,194.71,11.04397956]
[1760366618027,2.6806804,194.76,194.72,5.90813652]
[1760366618238,2.6806804,194.76,194.73,5.90813652]
[1760366618403,2.6806804,194.76,194.75,5.90813652]
[1760366619036,3.4006804,194.76,194.72,20.8]
[1760366619209,2.6806804,194.76,194.73,5.90813652]
[1760366619633,0.1,194.82,194.75,5.90813652]
[1760366619820,0.1,194.82,194.73,5.90813652]
[1760366619821,0.72,194.81,194.73,5.90813652]
[1760366620014,2.68028688,194.77,194.73,20.8]
[1760366620218,0.72,194.76,194.7,5.13585229]
[1760366620425,0.72,194.76,194.7,5.13610683]
[1760366620426,0.10486265,194.74,194.7,5.13610683]
[1760366620649,5.90813652,194.72,194.59,5.13901022]
[1760366620929,5.90813652,194.68,194.59,5.13901022]
[1760366621139,20.8,194.73,194.62,5.90813652]
[1760366621338,0.72,194.69,194.63,5.90813652]
[1760366621637,0.72,194.69,194.65,5.13742614]
[1760366621839,0.72,194.69,194.65,11.04556266]
[1760366622028,0.10486265,194.74,194.68,5.90813652]
[1760366622202,0.10486265,194.74,194.7,5.90813652]
[1760366622203,0.82486265,194.74,194.7,5.90813652]
[1760366622405,0.7,194.73,194.7,5.90813652]
[1760366622617,0.10486265,194.74,194.7,5.90813652]
[1760366623008,0.10486265,194.74,194.71,5.90813652]
[1760366623442,0.10486265,194.74,194.67,31.67647521]
[1760366623613,0.7,194.73,194.68,5.90813652]
[1760366623909,5.90813652,194.69,194.63,5.90813652]
[1760366624113,5.90813652,194.67,194.63,5.13795406]
[1760366624330,5.90813652,194.68,194.62,5.13818828]
[1760366624538,0.7,194.68,194.62,5.90813652]
[1760366624723,5.90813652,194.71,194.65,5.90813652]
[1760366624929,0.7,194.72,194.66,5.90813652]
[1760366625131,0.10486265,194.74,194.7,5.90813652]
[1760366625504,0.7,194.73,194.67,20.8]
[1760366625838,11.74354637,194.73,194.67,5.13687417]
[1760366626012,0.10486265,194.74,194.69,5.90813652]
[1760366626341,0.7,194.73,194.67,11.04503486]
[1760366626638,6.01299917,194.74,194.68,5.90813652]
[1760366626935,0.10486265,194.74,194.69,5.90813652]
[1760366627520,0.79486265,194.74,194.69,5.90813652]
[1760366627718,0.79486265,194.74,194.69,11.04430646]
[1760366628030,0.69,194.73,194.69,11.04430646]
[1760366628409,0.10486265,194.74,194.69,11.04430646]
[1760366628605,0.10486265,194.74,194.7,5.90813652]
[1760366629032,5.90813652,194.71,194.65,20.8]
[1760366629215,5.90813652,194.71,194.52,5.90813652]
[1760366629216,5.90813652,194.66,194.48,19.99999999]
[1760366629531,0.69,194.65,194.59,20.8]
[1760366629744,6.59813652,194.65,194.59,5.90813652]
[1760366629908,5.90813652,194.64,194.59,5.13895414]
[1760366630113,0.69,194.7,194.62,5.90813652]
[1760366630515,5.90813652,194.68,194.62,5.90813652]
[1760366630949,6.69236093,194.75,194.67,5.90813652]
[1760366631116,6.59813652,194.73,194.67,5.90813652]
[1760366631308,5.90813652,194.7,194.64,26.70813652]
[1760366631634,0.69,194.69,194.64,20.8]
[1760366631813,6.59813652,194.72,194.65,11.04556266]
[1760366632132,6.01299917,194.74,194.67,5.90813652]
[1760366632326,11.14811625,194.74,194.67,5.90813652]
[1760366632517,0.10486265,194.74,194.69,5.90813652]
[1760366632719,6.70299917,194.74,194.68,5.90813652]
[1760366633119,5.92992361,194.74,194.68,5.90813652]
[1760366633377,11.83806013,194.74,194.67,5.90813652]
[1760366633546,5.90813652,194.72,194.66,5.90813652]
[1760366633839,5.90813652,194.72,194.67,5.13689834]
[1760366634038,0.69,194.71,194.66,5.13713045]
[1760366634237,0.69,194.7,194.66,5.13713045]
[1760366634415,0.69,194.69,194.65,5.13736771]
[1760366634928,0.69,194.69,194.64,25.93768422]
[1760366634929,0.69,194.68,194.64,25.93768422]
[1760366635138,5.90813652,194.69,194.64,25.93768422]
[1760366635340,5.90813652,194.69,194.6,12.84629998]
[1760366635341,6.59813652,194.67,194.59,5.13891885]
[1760366635637,5.90813652,194.66,194.6,5.90813652]
[1760366635933,5.90813652,194.71,194.64,5.90813652]
[1760366636110,0.69,194.72,194.65,5.90813652]
[1760366636313,0.10486265,194.74,194.69,5.90813652]
[1760366636528,0.10486265,194.74,194.7,5.90813652]
[1760366636529,0.79486265,194.74,194.7,5.90813652]
[1760366637342,0.10486265,194.74,194.71,5.90813652]
[1760366637541,0.10486265,194.74,194.72,5.90813652]
[1760366637838,0.10486265,194.74,194.72,11.04357928]
[1760366638427,0.10486265,194.74,194.73,5.90813652]
[1760366638629,0.10486265,194.74,194.73,16.78461173]
[1760366639426,0.10486265,194.74,194.72,5.13544276]
[1760366639625,0.10486265,194.74,194.73,5.90813652]
[1760366639847,0.10486265,194.74,194.73,11.04345208]
[1760366640243,0.69,194.74,194.69,5.13637064]
[1760366640543,0.09848338,194.74,194.7,5.90813652]
[1760366640727,0.09848338,194.74,194.72,5.90813652]
[1760366640932,0.09848338,194.74,194.66,16.0135508]
[1760366641256,0.09848338,194.74,194.69,5.90813652]
[1760366641462,0.09848338,194.74,194.7,5.90813652]
[1760366641621,0.09848338,194.74,194.72,5.90813652]
[1760366641948,0.09848338,194.74,194.71,11.04397759]
[1760366642130,0.09848338,194.74,194.71,5.90813652]
[1760366642339,0.69,194.73,194.7,5.13605064]
[1760366642642,0.69,194.72,194.66,5.90813652]
[1760366642839,6.6966199,194.74,194.67,11.04498598]
[1760366643038,0.78848338,194.74,194.68,5.90813652]
[1760366643236,6.59813652,194.73,194.67,11.04498598]
[1760366643438,6.59813652,194.73,194.66,20.8]
[1760366643750,5.90813652,194.67,194.58,5.90813652]
[1760366644046,5.90813652,194.63,194.57,5.90813652]
[1760366644249,5.82716223,194.66,194.57,26.70813652]
[1760366644430,0.69,194.66,194.58,5.90813652]
[1760366644627,0.69,194.66,194.57,20.8]
[1760366644628,11.04511058,194.67,194.6,5.90813652]
[1760366644829,6.59813652,194.7,194.63,5.90813652]
[1760366645149,0.09848338,194.74,194.62,5.90813652]
[1760366645150,5.90813652,194.68,194.62,5.90813652]
[1760366645333,5.90813652,194.67,194.57,9.54]
[1760366645539,5.90813652,194.66,194.6,5.90813652]
[1760366645937,5.90813652,194.64,194.5,211.7]
[1760366646142,5.90813652,194.62,194.56,5.90813652]
[1760366646328,5.90813652,194.61,194.55,5.90813652]
[1760366646523,6.59813652,194.65,194.51,10.87647521]
[1760366646725,5.90813652,194.62,194.48,10.87647521]
[1760366646932,6.59813652,194.61,194.55,26.70813652]
[1760366647256,5.90813652,194.6,194.54,5.90813652]
[1760366647428,5.90813652,194.59,194.5,10.87647521]
[1760366647631,5.90813652,194.59,194.52,5.90813652]
[1760366647830,5.90813652,194.59,194.53,5.14059528]
[1760366648033,5.90813652,194.59,194.49,9.54]
[1760366648034,5.90813652,194.56,194.41,211.9]
[1760366648374,0.69,194.55,194.5,5.90813652]
[1760366648752,0.69,194.54,194.49,26.70813652]
[1760366649350,6.59813652,194.57,194.51,5.90813652]
[1760366649557,0.69,194.62,194.53,5.90813652]
[1760366649745,5.90813652,194.6,194.53,5.90813652]
[1760366650065,0.69,194.61,194.55,5.90813652]
[1760366650235,0.69,194.64,194.58,5.90813652]
[1760366650435,6.59813652,194.63,194.55,20.8]
[1760366650637,5.90813652,194.67,194.6,5.90813652]
[1760366650831,0.69,194.68,194.63,5.90813652]
[1760366651037,0.69,194.68,194.64,5.90813652]
[1760366651231,0.69,194.68,194.63,5.90813652]
[1760366651435,6.59813652,194.67,194.61,5.90813652]
[1760366651767,33.63845079,194.73,194.56,5.90813652]
[1760366651768,5.90813652,194.62,194.56,5.90813652]
[1760366651933,6.59813652,194.61,194.55,26.70813652]
[1760366652129,0.69,194.61,194.55,26.70813652]
[1760366652335,5.90813652,194.62,194.57,20.8]
[1760366652565,6.61813652,194.61,194.55,5.90813652]
[1760366652956,6.61813652,194.61,194.47,17.99763459]
[1760366652957,5.90813652,194.59,194.54,20.8]
[1760366653267,5.90813652,194.55,194.42,12.85872006]
[1760366653561,5.13966731,194.57,194.42,12.85872006]
[1760366653562,5.90813652,194.54,194.48,5.90813652]
[1760366653856,5.90813652,194.55,194.49,5.90813652]
[1760366654041,12.84712388,194.6,194.52,5.90813652]
[1760366654247,19.99999999,194.67,194.54,5.90813652]
[1760366654248,0.71,194.59,194.54,5.90813652]
[1760366654452,0.71,194.62,194.56,5.90813652]
[1760366654773,6.61813652,194.61,194.55,5.90813652]
[1760366655140,6.61813652,194.61,194.56,5.13980263]
[1760366655343,0.71,194.6,194.56,5.13980263]
[1760366655883,0.71,194.59,194.56,5.13980263]
[1760366656158,0.71,194.59,194.54,5.1401051]
[1760366656338,6.61813652,194.58,194.53,5.14057124]
[1760366656934,5.90813652,194.6,194.54,5.90813652]
[1760366657158,6.61813652,194.6,194.55,5.14006682]
[1760366657467,5.13858378,194.61,194.54,5.90813652]
[1760366657468,6.61813652,194.59,194.54,5.14031172]
[1760366657762,0.71,194.58,194.5,26.70813652]
[1760366657942,5.90813652,194.57,194.51,5.90813652]
[1760366658340,0.71,194.65,194.56,26.70813652]
[1760366658644,6.61813652,194.7,194.64,5.90813652]
[1760366659036,6.61813652,194.7,194.59,20.8]
[1760366659357,0.71,194.69,194.64,5.90813652]
[1760366659534,5.90813652,194.71,194.65,5.90813652]
[1760366659748,5.90813652,194.71,194.64,5.90813652]
[1760366659949,0.71,194.72,194.6,27.5256115]
[1760366659950,0.71,194.7,194.6,5.13874614]
[1760366660260,0.0935958,194.61,194.58,5.13927433]
[1760366661063,0.0935958,194.61,194.56,5.90813652]
[1760366661265,6.61813652,194.6,194.54,5.90813652]
[1760366661469,6.61813652,194.6,194.4,27.97252123]
[1760366661470,5.90813652,194.56,194.5,5.90813652]
[1760366661651,0.71,194.59,194.5,26.70813652]
[1760366661652,5.90813652,194.57,194.5,26.70813652]
[1760366661851,6.61813652,194.56,194.5,5.90813652]
[1760366662056,5.90813652,194.55,194.49,5.90813652]
[1760366662458,5.90813652,194.54,194.45,10.87647521]
[1760366662667,0.71,194.53,194.48,5.90813652]
[1760366662869,5.90813652,194.5,194.44,5.14297469]
[1760366663058,5.90813652,194.49,194.44,5.14297469]
[1760366663256,0.71,194.51,194.45,5.90813652]
[1760366663574,0.71,194.54,194.47,5.90813652]
[1760366663757,5.90813652,194.52,194.46,5.90813652]
[1760366664271,5.90813652,194.47,194.42,5.14350375]
[1760366664460,0.71,194.51,194.45,5.90813652]
[1760366664461,6.61813652,194.51,194.45,5.90813652]
[1760366664657,0.71,194.51,194.45,5.90813652]
[1760366664876,20.8,194.55,194.48,5.90813652]
[1760366665066,26.70813652,194.55,194.48,5.90813652]
[1760366665375,5.14033103,194.54,194.48,14.07537216]
[1760366665677,5.85033103,194.54,194.48,14.07537216]
[1760366665891,29.73359747,194.55,194.48,14.07537216]
[1760366665892,5.14004716,194.56,194.49,8.93359747]
[1760366666050,8.93359747,194.55,194.49,8.93359747]
[1760366666680,8.93359747,194.51,194.46,5.1422202]
[1760366666979,9.64359747,194.5,194.45,20.8]
[1760366667187,0.71,194.55,194.47,8.93359747]
[1760366667479,14.78367782,194.55,194.49,8.93359747]
[1760366667687,8.93359747,194.54,194.48,8.93359747]
[1760366667890,0.71,194.55,194.46,17.9985601]
[1760366668059,0.71,194.55,194.49,8.93359747]
[1760366668484,0.71,194.55,194.46,17.9985601]
[1760366668687,0.71,194.55,194.5,8.93359747]
[1760366668983,8.93359747,194.57,194.48,20.8]
[1760366669159,8.93359747,194.55,194.49,8.93359747]
[1760366669482,8.93359747,194.54,194.49,5.1414497]
[1760366669675,8.93359747,194.54,194.47,8.93359747]
[1760366669676,0.71,194.53,194.47,8.93359747]
[1760366669978,2.68365542,194.56,194.49,8.93359747]
[1760366669979,8.53346303,194.56,194.49,8.93359747]
[1760366670174,8.93359747,194.55,194.49,8.93359747]
[1760366670897,3.39365542,194.56,194.47,12.85545328]
[1760366671394,9.02858486,194.62,194.55,8.93359747]
[1760366671563,0.09498739,194.62,194.57,8.93359747]
[1760366671761,2.68279698,194.6,194.57,8.93359747]
[1760366671980,2.68279698,194.6,194.59,8.93359747]
[1760366672481,2.68279698,194.6,194.59,29.73359747]
[1760366672653,0.09498739,194.62,194.59,29.73359747]
[1760366672858,1e-08,194.61,194.6,8.93359747]
[1760366673059,0.10090284,194.66,194.64,20.8]
[1760366673264,1e-08,194.67,194.65,19.81007268]
[1760366673585,2.68084521,194.73,194.68,31.67647521]
[1760366673796,0.71,194.8,194.72,8.93359747]
[1760366674084,2.6802394,194.77,194.72,8.93359747]
[1760366674382,0.71,194.8,194.72,8.93359747]
[1760366674677,2.68018041,194.78,194.75,8.93359747]
[1760366674879,2.68018041,194.78,194.77,14.06785839]
[1760366675085,0.1,194.82,194.77,14.06785839]
[1760366675293,0.1,194.82,194.81,8.93359747]
[1760366676386,0.1,194.82,194.79,8.93359747]
[1760366676557,0.1,194.82,194.8,8.93359747]
[1760366676759,0.1,194.82,194.77,5.13426092]
[1760366676982,0.1,194.82,194.78,8.93359747]
[1760366677354,0.1,194.82,194.79,8.93359747]
[1760366678172,0.1,194.82,194.8,8.93359747]
[1760366678585,0.1,194.82,194.77,20.8]
[1760366678884,0.1,194.82,194.79,8.93359747]
[1760366680068,0.1,194.82,194.81,8.93359747]
[1760366680269,0.19872898,194.82,194.81,8.93359747]
[1760366680981,0.19872898,194.82,194.78,5.13399733]
[1760366680982,0.19872898,194.82,194.8,8.93359747]
[1760366681784,0.19872898,194.82,194.78,14.0675948]
[1760366682384,0.19872898,194.82,194.8,8.93359747]
[1760366682588,0.19872898,194.82,194.79,8.93359747]
[1760366683180,0.68,194.81,194.76,5.13445793]
[1760366683364,9.13232645,194.82,194.76,8.93359747]
[1760366683561,0.19872898,194.82,194.77,8.93359747]
[1760366683985,0.68,194.81,194.77,8.93359747]
[1760366684485,0.68,194.8,194.77,8.93359747]
[1760366685187,0.68,194.79,194.72,20.8]
[1760366685399,0.68,194.79,194.56,47.76269774]
[1760366685400,8.93359747,194.77,194.64,25.68733034]
[1760366685565,8.93359747,194.77,194.71,8.93359747]
[1760366686058,9.61359747,194.76,194.68,20.8]
[1760366686259,26.13177346,194.82,194.75,8.93359747]
[1760366686498,0.19872898,194.82,194.79,8.93359747]
[1760366686792,0.7,194.81,194.78,8.93359747]
[1760366686984,0.19872898,194.82,194.72,10.87647521]
[1760366687165,5.33175141,194.82,194.77,8.93359747]
[1760366687366,0.7,194.81,194.77,8.93359747]
[1760366687976,0.19872898,194.82,194.8,8.93359747]
[1760366688176,0.19872898,194.82,194.79,8.93359747]
[1760366688583,0.19872898,194.82,194.8,8.93359747]
[1760366688886,0.89872898,194.82,194.76,20.8]
[1760366689190,9.83232645,194.82,194.76,8.93359747]
[1760366689684,0.19872898,194.82,194.77,8.93359747]
[1760366689888,0.19872898,194.82,194.8,8.93359747]
[1760366690586,0.19872898,194.82,194.81,8.93359747]
[1760366691177,0.19872898,194.82,194.81,14.06680418]
[1760366691769,0.19872898,194.82,194.78,20.8]
[1760366691970,0.19872898,194.82,194.8,8.93359747]
[1760366692485,0.19872898,194.82,194.81,8.93359747]
[1760366693192,0.19872898,194.82,194.81,14.06680418]
[1760366693364,0.89872898,194.82,194.77,14.06785839]
[1760366693564,0.7,194.81,194.77,14.06785839]
[1760366694096,0.19872898,194.82,194.8,8.93359747]
[1760366694270,0.19872898,194.82,194.77,17.96991322]
[1760366694271,0.19872898,194.82,194.81,8.93359747]
[1760366695400,0.19872898,194.82,194.81,45.74327939]
[1760366696080,0.19872898,194.82,194.81,25.93320671]
[1760366696285,0.19872898,194.82,194.81,34.86680418]
[1760366696487,0.89872898,194.82,194.78,34.8675948]
[1760366696693,0.19872898,194.82,194.79,8.93359747]
[1760366696997,0.89872898,194.82,194.79,8.93359747]
[1760366697299,0.89872898,194.82,194.8,5.13347022]
[1760366697797,0.7,194.81,194.76,8.93359747]
[1760366698103,8.93359747,194.78,194.72,14.06917676]
[1760366698310,8.93359747,194.79,194.72,8.93359747]
[1760366698592,5.3318117,194.82,194.74,8.93359747]
[1760366698593,8.93359747,194.8,194.74,8.93359747]
[1760366698798,0.7,194.79,194.74,8.93359747]
[1760366699096,0.7,194.78,194.74,8.93359747]
[1760366699290,0.7,194.77,194.74,5.13505186]
[1760366699498,0.7,194.79,194.7,20.8]
[1760366699693,0.7,194.79,194.74,8.93359747]
[1760366699895,0.19872898,194.82,194.77,8.93359747]
[1760366700201,0.1,194.82,194.79,8.93359747]
[1760366700503,9.0448276,194.8,194.7,17.97635016]
[1760366700799,8.93359747,194.75,194.7,8.93359747]
[1760366700988,0.11123013,194.8,194.74,8.93359747]
[1760366701182,0.11123013,194.8,194.7,5.13600975]
[1760366701183,0.11123013,194.8,194.78,8.93359747]
[1760366701391,0.11123013,194.8,194.79,24.94380644]
[1760366701392,1e-08,194.8,194.79,24.94380644]
[1760366701582,1e-08,194.81,194.8,31.67647521]
[1760366701777,1e-08,194.81,194.8,40.61007268]
[1760366701977,1e-08,194.81,194.8,31.67647521]
[1760366702204,1e-08,194.81,194.8,40.61007268]
[1760366702696,1e-08,194.81,194.8,8.93359747]
[1760366703417,1e-08,194.81,194.8,24.9435429]
[1760366703599,1e-08,194.81,194.8,14.06706769]
[1760366703803,1e-08,194.81,194.8,24.9435429]
[1760366703990,1e-08,194.81,194.8,45.7435429]
[1760366704689,0.10498092,194.83,194.82,31.67647521]
[1760366704886,0.10498092,194.83,194.82,20.8]
[1760366705085,0.10498092,194.83,194.82,29.73359747]
[1760366705296,0.10498092,194.83,194.82,40.61007268]
[1760366705503,1e-08,194.85,194.83,10.87647521]
[1760366705797,1e-08,194.85,194.82,38.76530129]
[1760366706184,0.7,194.84,194.81,14.06679257]
[1760366706377,1e-08,194.85,194.83,8.93359747]
[1760366706605,1e-08,194.85,194.84,8.93359747]
[1760366706901,1e-08,194.86,194.85,10.87647521]
[1760366707114,1e-08,194.87,194.85,19.81007268]
[1760366707400,1e-08,194.87,194.86,16.00836477]
[1760366707698,1e-08,194.87,194.86,24.94196224]
[1760366708903,1e-08,194.87,194.86,16.00836477]
[1760366709099,1e-08,194.87,194.86,24.94196224]
[1760366709609,1e-08,194.87,194.86,14.06548703]
[1760366709902,1e-08,194.87,194.86,24.94196224]
[1760366711615,1e-08,194.87,194.86,45.74196224]
[1760366712591,1e-08,194.87,194.86,33.87555971]
[1760366712791,0.1,194.92,194.9,10.87647521]
[1760366712997,1e-08,194.92,194.91,50.13007268]
[1760366713200,1e-08,194.92,194.91,40.61007268]
[1760366713490,1e-08,194.92,194.86,43.62106126]
[1760366713491,0.72000001,194.92,194.86,43.62106126]
[1760366713694,0.72,194.91,194.84,20.8]
[1760366713912,0.72,194.9,194.86,8.93359747]
[1760366714110,0.72,194.89,194.88,8.93359747]
[1760366714588,1e-08,194.92,194.88,8.93359747]
[1760366714788,0.72,194.89,194.88,8.93359747]
[1760366715017,0.72,194.89,194.87,8.93359747]
[1760366715226,0.72,194.89,194.85,17.96253527]
[1760366715227,0.72,194.91,194.88,8.93359747]
[1760366715392,0.72,194.9,194.88,8.93359747]
[1760366715593,1e-08,194.92,194.84,38.76343529]
[1760366715594,1e-08,194.92,194.89,8.93359747]
[1760366715802,1e-08,194.92,194.9,14.06443379]
[1760366716094,0.72000001,194.92,194.9,14.06443379]
[1760366716305,0.72,194.91,194.9,5.13083632]
[1760366716498,0.72,194.91,194.88,5.13113049]
[1760366716700,1e-08,194.92,194.9,8.93359747]
[1760366716910,1e-08,194.92,194.91,8.93359747]
[1760366717109,0.72000001,194.92,194.89,8.93359747]
[1760366717526,0.72,194.91,194.88,17.95953771]
[1760366717698,1e-08,194.92,194.9,5.13083632]
[1760366717899,0.72,194.91,194.9,5.13083632]
[1760366718397,0.72,194.91,194.9,14.06443379]
[1760366718917,1e-08,194.92,194.9,14.06443379]
[1760366719113,0.72,194.91,194.9,5.13083632]
[1760366719499,0.72,194.91,194.88,12.82840722]
[1760366719500,0.72,194.91,194.88,5.13136288]
[1760366719796,8.93359748,194.92,194.82,10.87647521]
[1760366719797,0.72,194.9,194.82,10.87647521]
[1760366720123,0.72,194.9,194.81,9.52]
[1760366720124,0.72,194.89,194.84,8.93359747]
[1760366720328,0.10057103,194.85,194.84,8.93359747]
[1760366721429,0.09435574,194.86,194.84,29.73359747]
[1760366721720,1e-08,194.87,194.86,24.94196224]
[1760366722027,1e-08,194.89,194.87,31.67647521]
[1760366722228,1e-08,194.89,194.86,17.96161346]
[1760366722400,0.72000001,194.89,194.88,8.93359747]
[1760366722714,1e-08,194.89,194.88,8.93359747]
[1760366723215,0.10825317,194.91,194.89,10.87647521]
[1760366723515,0.10825317,194.91,194.9,29.73359747]
[1760366723699,0.10825317,194.91,194.9,34.86443379]
[1760366724595,0.10825317,194.91,194.9,25.93083632]
[1760366724797,0.10825317,194.91,194.9,34.86443379]
[1760366725423,0.10825317,194.91,194.9,14.06443379]
[1760366725891,1e-08,194.92,194.91,10.87647521]
[1760366726096,1e-08,194.92,194.91,19.81007268]
[1760366726519,1e-08,194.96,194.91,19.81007268]
[1760366726720,0.1,194.98,194.97,31.67647521]
[1760366726721,1e-08,194.98,194.97,31.67647521]
[1760366726928,1e-08,194.98,194.97,40.61007268]
[1760366727418,1e-08,194.98,194.97,37.56394111]
[1760366727802,1e-08,194.98,194.97,42.69293531]
[1760366728004,0.72000001,194.98,194.97,25.9289942]
[1760366728221,0.72000001,194.98,194.97,31.8164601]
[1760366728437,1e-08,194.98,194.97,31.8164601]
[1760366728603,1e-08,194.98,194.97,11.0164601]
[1760366729315,1e-08,194.98,194.97,5.1289942]
[1760366729499,1e-08,194.98,194.97,11.0164601]
[1760366729821,6.60746591,194.98,194.91,5.13057308]
[1760366730025,5.8874659,194.95,194.84,25.66080225]
[1760366730323,6.6074659,194.94,194.88,5.8874659]
[1760366730521,0.72,194.93,194.9,5.8874659]
[1760366730737,0.72,194.96,194.92,5.8874659]
[1760366730902,1e-08,194.98,194.85,17.9624819]
[1760366730903,0.72,194.92,194.85,17.9624819]
[1760366731224,0.72,194.91,194.86,5.8874659]
[1760366731432,0.72,194.9,194.85,5.13215293]
[1760366731608,0.72,194.9,194.82,23.7083505]
[1760366731609,0.72,194.89,194.82,5.8874659]
[1760366731800,0.72,194.88,194.84,5.13241634]
[1760366732000,0.72,194.9,194.85,5.8874659]
[1760366732210,0.72,194.89,194.85,5.8874659]
[1760366732411,0.72,194.88,194.85,5.8874659]
[1760366732616,0.72,194.88,194.81,20.8]
[1760366732617,0.72,194.87,194.81,20.8]
[1760366732814,0.72,194.86,194.83,5.8874659]
[1760366733016,0.72,194.9,194.85,5.8874659]
[1760366733207,0.72,194.89,194.86,5.8874659]
[1760366733410,0.72,194.89,194.87,5.8874659]
[1760366733707,31.81699403,194.95,194.88,5.8874659]
[1760366734012,0.72,194.94,194.89,11.01856549]
[1760366734223,0.72,194.93,194.89,5.13109959]
[1760366734413,0.72,194.92,194.89,5.13109959]
[1760366734617,0.72,194.91,194.88,11.01881239]
[1760366734823,5.8874659,194.89,194.76,5.13452454]
[1760366735012,6.6074659,194.88,194.8,20.8]
[1760366735221,0.72,194.87,194.82,5.8874659]
[1760366735521,49.62980431,194.95,194.83,5.8874659]
[1760366735716,0.72,194.86,194.82,5.8874659]
[1760366735911,5.8874659,194.88,194.8,20.8]
[1760366735912,0.72,194.88,194.84,5.8874659]
[1760366736237,0.72,194.87,194.84,5.8874659]
[1760366736428,0.72,194.86,194.84,5.8874659]
[1760366736832,0.72,194.86,194.83,17.9643792]
[1760366736833,0.72,194.85,194.81,5.13320671]
[1760366737018,5.8874659,194.83,194.74,10.87647521]
[1760366737213,5.8874659,194.83,194.65,19.99999999]
[1760366737214,0.72,194.82,194.76,12.83614015]
[1760366737414,10.87647521,194.92,194.8,5.8874659]
[1760366737613,5.8874659,194.86,194.8,5.8874659]
[1760366737814,0.72,194.85,194.8,11.02077602]
[1760366738032,0.72,194.85,194.83,5.8874659]
[1760366738239,5.8874659,194.89,194.84,5.8874659]
[1760366738240,0.72,194.89,194.84,5.8874659]
[1760366738541,19.55884012,195.17,194.84,5.8874659]
[1760366738542,0.72,194.88,194.84,5.8874659]
[1760366738727,5.8874659,194.86,194.8,5.13331012]
[1760366738916,12.8231432,194.96,194.8,5.13331012]
[1760366738917,5.8874659,194.84,194.8,5.13331012]
[1760366739117,0.72,194.83,194.8,5.13331012]
[1760366739426,0.72,194.82,194.8,5.13331012]
[1760366740017,0.72,194.82,194.79,11.02119966]